bitfinex/quotes_BTCUSD_20230113
["timestamp","ask_amount","ask_price","bid_price","bid_amount"]
[1673650668330,0.00821364,19864.0,19862.0,0.95502056]
[1673650669107,0.00821364,19864.0,19862.0,1.45849256]
[1673650669337,0.14421364,19864.0,19863.0,0.44068805]
[1673650669591,0.14421364,19864.0,19863.0,2.01402557]
[1673650670093,0.14421364,19864.0,19863.0,1.92051884]
[1673650670343,0.14421364,19864.0,19863.0,1.98776133]
[1673650670585,0.03292489,19864.0,19863.0,2.28833792]
[1673650670836,0.008214,19865.0,19864.0,0.2]
[1673650671084,0.008214,19865.0,19864.0,1.74713667]
[1673650671370,0.008214,19865.0,19864.0,1.92853297]
[1673650672121,0.067214,19865.0,19864.0,1.78907267]
[1673650672380,0.067214,19865.0,19864.0,1.93953312]
[1673650672626,0.008214,19866.0,19865.0,0.05535235]
[1673650672627,4e-06,19866.0,19865.0,0.05535235]
[1673650672866,0.00747188,19867.0,19865.0,3.28547362]
[1673650673136,0.00747188,19867.0,19866.0,1.42256882]
[1673650673392,0.00747188,19867.0,19866.0,2.22816017]
[1673650673630,0.00747188,19867.0,19866.0,2.22887667]
[1673650674118,0.00747188,19867.0,19866.0,1.92816017]
[1673650674369,0.00747188,19867.0,19866.0,2.73005848]
[1673650674612,0.00747188,19867.0,19866.0,2.78564134]
[1673650675084,0.00747188,19867.0,19866.0,3.08601732]
[1673650675324,0.00747188,19867.0,19866.0,2.2093956]
[1673650675562,0.00747188,19867.0,19866.0,2.13468485]
[1673650675804,0.00747188,19867.0,19866.0,2.58486467]
[1673650676063,0.00747188,19867.0,19866.0,2.28448869]
[1673650676552,0.00747188,19867.0,19866.0,1.90901962]
[1673650676782,0.00747188,19867.0,19866.0,2.58435914]
[1673650677086,0.00747188,19867.0,19866.0,2.28420824]
[1673650677819,0.00747188,19867.0,19866.0,2.41017227]
[1673650678053,0.00753451,19869.0,19867.0,0.2]
[1673650678289,0.00753451,19869.0,19868.0,3.09323266]
[1673650678557,4.51e-06,19869.0,19868.0,3.59427033]
[1673650678811,0.00790484,19878.0,19869.0,0.2]
[1673650679059,0.00790484,19878.0,19872.0,0.3744978]
[1673650679297,0.00790484,19878.0,19873.0,2.74388041]
[1673650679561,0.00790484,19878.0,19874.0,0.20028541]
[1673650679826,0.02932981,19876.0,19875.0,1.53163401]
[1673650680054,0.00790484,19878.0,19875.0,1.53691572]
[1673650680055,0.03765801,19878.0,19875.0,1.53691572]
[1673650680294,0.03765801,19878.0,19876.0,0.022219]
[1673650680537,0.00790484,19878.0,19876.0,0.70339941]
[1673650680785,0.00790484,19878.0,19876.0,0.503114]
[1673650681290,0.00790484,19878.0,19876.0,1.017233]
[1673650681546,0.00790484,19878.0,19877.0,0.081386]
[1673650681773,0.00790484,19878.0,19877.0,1.287574]
[1673650682067,0.00790484,19878.0,19877.0,1.087574]
[1673650682330,0.00790484,19878.0,19877.0,1.028404]
[1673650682559,0.03927551,19878.0,19876.0,0.49661203]
[1673650682819,0.00825251,19880.0,19876.0,0.49661203]
[1673650682820,0.03952653,19880.0,19876.0,0.99072503]
[1673650683066,0.03952653,19880.0,19878.0,0.59480997]
[1673650683324,0.03952653,19880.0,19878.0,1.29815838]
[1673650683325,0.00825251,19880.0,19878.0,1.29815838]
[1673650683569,0.00825251,19880.0,19878.0,1.09787297]
[1673650683831,0.00325251,19880.0,19878.0,1.60094097]
[1673650684306,0.00598177,19882.0,19879.0,0.022212]
[1673650684557,0.00598177,19882.0,19880.0,1.006036]
[1673650684796,0.00598177,19882.0,19880.0,1.20632141]
[1673650685034,0.00598177,19882.0,19880.0,1.006036]
[1673650685281,0.00598177,19882.0,19881.0,0.58609318]
[1673650685525,0.00598177,19882.0,19881.0,1.61427718]
[1673650685752,0.00598177,19882.0,19881.0,1.61502229]
[1673650686487,0.00598177,19882.0,19881.0,1.22921452]
[1673650686739,0.00598177,19882.0,19881.0,1.02892911]
[1673650687019,0.00598177,19882.0,19881.0,1.03892911]
[1673650687248,0.00598177,19882.0,19881.0,1.22892911]
[1673650687497,1.15211531,19889.0,19882.0,0.2]
[1673650687744,1.15211531,19889.0,19884.0,1.005828]
[1673650687986,0.502763,19891.0,19886.0,0.2]
[1673650688240,0.502763,19891.0,19887.0,0.20028541]
[1673650688476,0.502707,19893.0,19888.0,0.19084134]
[1673650688705,0.502707,19893.0,19889.0,0.20028541]
[1673650688942,0.502707,19893.0,19890.0,0.20028541]
[1673650689420,0.502688,19894.0,19890.0,0.20028541]
[1673650689691,0.323968,19893.0,19890.0,0.40028541]
[1673650689940,0.502688,19894.0,19889.0,0.502789]
[1673650690197,1.72963941,19893.0,19887.0,0.502817]
[1673650690439,0.40384141,19892.0,19887.0,0.20028541]
[1673650690708,1.005386,19893.0,19888.0,0.85729257]
[1673650690949,0.502665,19894.0,19889.0,0.20028541]
[1673650691217,0.502665,19894.0,19890.0,0.40028541]
[1673650691445,0.323968,19893.0,19890.0,0.20028541]
[1673650691682,0.203556,19892.0,19888.0,1.15981116]
[1673650691932,0.2,19893.0,19887.0,0.502839]
[1673650691933,0.52425341,19891.0,19887.0,0.502839]
[1673650692186,0.20028541,19890.0,19887.0,0.502839]
[1673650692420,0.20028541,19890.0,19888.0,0.011]
[1673650692658,2.155119,19893.0,19887.0,0.502839]
[1673650692898,2.15637441,19893.0,19888.0,0.20028541]
[1673650693149,0.502722,19892.0,19888.0,0.20028541]
[1673650693375,0.502722,19892.0,19888.0,0.72586854]
[1673650693665,0.502722,19892.0,19889.0,0.53193574]
[1673650694130,0.323968,19891.0,19889.0,0.53193574]
[1673650694387,0.2,19891.0,19887.0,0.502839]
[1673650694626,0.323968,19890.0,19887.0,0.63739686]
[1673650694875,1.205497,19891.0,19887.0,0.63739686]
[1673650695129,0.87525591,19891.0,19887.0,0.63739686]
[1673650695379,0.87525591,19891.0,19889.0,0.012]
[1673650695615,0.323968,19890.0,19887.0,0.83768227]
[1673650695913,1.37801791,19891.0,19887.0,0.64839686]
[1673650696160,0.826736,19890.0,19887.0,0.63739686]
[1673650696395,0.37605391,19889.0,19887.0,0.011]
[1673650696645,1.629598,19888.0,19884.0,0.47914903]
[1673650696886,1.50563,19888.0,19887.0,0.0001]
[1673650697186,1.50563,19888.0,19882.0,0.60578429]
[1673650697187,0.2,19887.0,19882.0,0.60578429]
[1673650697380,1.71219,19886.0,19882.0,0.60578429]
[1673650697629,1.54906856,19885.0,19880.0,0.54719896]
[1673650697881,1.54906856,19885.0,19878.0,0.58142188]
[1673650697882,0.2,19883.0,19878.0,0.58142188]
[1673650698139,2.50655856,19882.0,19878.0,0.58142188]
[1673650698409,0.67605391,19881.0,19878.0,0.58142188]
[1673650698632,0.67605391,19881.0,19874.0,0.56630161]
[1673650698633,2.50667256,19880.0,19874.0,0.56630161]
[1673650698876,2.50667256,19880.0,19872.0,0.56857366]
[1673650698877,2.5405618,19879.0,19872.0,0.56857366]
[1673650699118,1.760848,19877.0,19872.0,0.56857366]
[1673650699360,0.2,19875.0,19872.0,0.56857366]
[1673650699603,0.05917,19873.0,19872.0,0.56857366]
[1673650699837,0.63522391,19873.0,19872.0,0.56857366]
[1673650700076,0.262726,19873.0,19872.0,0.56857366]
[1673650701051,0.203556,19873.0,19872.0,0.05685737]
[1673650701316,0.203556,19873.0,19871.0,0.54136622]
[1673650701555,0.503169,19874.0,19871.0,0.54136622]
[1673650701556,0.323968,19872.0,19871.0,0.54136622]
[1673650701796,0.503169,19874.0,19871.0,0.54136622]
[1673650702024,0.503169,19874.0,19871.0,0.59550284]
[1673650702480,0.703158,19875.0,19871.0,0.59550284]
[1673650702481,0.136,19873.0,19872.0,0.001]
[1673650702482,0.136,19873.0,19872.0,0.78814704]
[1673650702723,0.49437,19878.0,19872.0,0.78814704]
[1673650702724,0.503082,19878.0,19873.0,0.11656905]
[1673650702965,0.503082,19878.0,19873.0,0.31656905]
[1673650702966,0.694082,19878.0,19873.0,0.31656905]
[1673650703216,0.503082,19878.0,19873.0,0.31656905]
[1673650703473,0.136,19874.0,19873.0,0.30656905]
[1673650703763,0.136,19874.0,19873.0,0.30791002]
[1673650703997,0.136,19874.0,19873.0,1.00855779]
[1673650704247,0.01321198,19874.0,19873.0,0.40998185]
[1673650704494,0.01321198,19874.0,19873.0,0.41098185]
[1673650704742,0.502957,19883.0,19873.0,0.40998185]
[1673650704987,0.67548491,19882.0,19875.0,1.006256]
[1673650705259,0.502987,19882.0,19876.0,0.45442203]
[1673650705511,0.502957,19883.0,19877.0,0.20028541]
[1673650705765,0.502906,19885.0,19879.0,0.2]
[1673650706029,0.076,19882.0,19880.0,0.22028541]
[1673650706275,0.69345,19886.0,19880.0,0.02]
[1673650706276,0.50287,19886.0,19880.0,0.02]
[1673650706503,0.50287,19886.0,19881.0,0.20028541]
[1673650706504,0.136,19883.0,19881.0,0.20028541]
[1673650706756,0.136,19883.0,19882.0,0.02002854]
[1673650706996,0.136,19883.0,19882.0,0.30139354]
[1673650707724,0.502857,19887.0,19882.0,0.80436054]
[1673650707980,0.502857,19887.0,19883.0,0.20028541]
[1673650708227,0.502821,19888.0,19884.0,0.22031395]
[1673650708477,0.502773,19890.0,19885.0,0.20028541]
[1673650708738,0.74674407,19894.0,19886.0,0.70313841]
[1673650708739,0.502674,19894.0,19886.0,0.70313841]
[1673650708995,0.67517191,19894.0,19887.0,0.49277225]
[1673650709246,0.2,19893.0,19888.0,0.20028541]
[1673650709493,0.2,19893.0,19889.0,0.22031395]
[1673650709739,0.502674,19894.0,19889.0,0.22031395]
[1673650709983,0.502674,19894.0,19890.0,0.20028541]
[1673650710230,0.2,19893.0,19890.0,0.20028541]
[1673650710472,0.323968,19892.0,19889.0,0.02002854]
[1673650710725,0.323968,19892.0,19887.0,1.712439]
[1673650710726,0.2,19893.0,19887.0,1.712439]
[1673650710981,0.17249791,19892.0,19887.0,1.91272441]
[1673650711479,0.17249791,19892.0,19887.0,1.38660468]
[1673650711727,0.17249791,19892.0,19887.0,0.90312441]
[1673650711974,0.37249791,19891.0,19886.0,1.11627646]
[1673650712232,0.17249791,19890.0,19887.0,0.005]
[1673650712474,1.038455,19892.0,19887.0,0.005]
[1673650712718,1.038455,19892.0,19887.0,0.20528541]
[1673650712719,1.21095291,19892.0,19887.0,0.20528541]
[1673650712964,1.21095291,19892.0,19888.0,0.02052854]
[1673650713212,0.033,19892.0,19889.0,0.20028541]
[1673650713458,0.502691,19893.0,19889.0,0.40028541]
[1673650713714,0.018,19891.0,19889.0,0.40028541]
[1673650713965,0.018,19891.0,19890.0,0.04002854]
[1673650714220,0.502678,19894.0,19890.0,0.04002854]
[1673650714470,0.032,19892.0,19890.0,0.24031395]
[1673650714720,0.502678,19894.0,19890.0,0.04002854]
[1673650714961,0.001,19891.0,19890.0,0.24031395]
[1673650715236,0.502678,19894.0,19890.0,0.04002854]
[1673650715498,0.018,19892.0,19890.0,0.24031395]
[1673650715744,0.018,19892.0,19890.0,0.04002854]
[1673650716494,0.502678,19894.0,19890.0,0.04002854]
[1673650716738,0.032,19891.0,19890.0,0.25031395]
[1673650716979,1.005362,19894.0,19889.0,1.12187009]
[1673650717216,1.005362,19894.0,19890.0,0.01]
[1673650717217,0.032,19892.0,19890.0,0.01]
[1673650717476,1.005362,19894.0,19890.0,0.2]
[1673650717725,1.037362,19894.0,19890.0,0.41128541]
[1673650717970,1.005362,19894.0,19890.0,0.40028541]
[1673650718213,0.033,19892.0,19890.0,0.20528541]
[1673650718468,0.033,19892.0,19886.0,0.2]
[1673650718469,0.17249791,19891.0,19886.0,0.2]
[1673650718729,0.99924291,19890.0,19884.0,0.702896]
[1673650718974,0.99924291,19890.0,19882.0,1.04814149]
[1673650718975,0.69646591,19889.0,19882.0,1.04814149]
[1673650719228,1.005686,19887.0,19882.0,0.54519549]
[1673650719478,0.17249791,19886.0,19882.0,0.54519549]
[1673650719723,0.17249791,19885.0,19882.0,0.54519549]
[1673650719980,0.17249791,19885.0,19883.0,0.47763211]
[1673650720224,0.502875,19886.0,19883.0,0.47763211]
[1673650720225,0.702875,19886.0,19883.0,0.47763211]
[1673650720474,0.2,19885.0,19881.0,0.01201485]
[1673650720731,0.99938691,19884.0,19881.0,0.64324036]
[1673650720983,0.323968,19883.0,19881.0,0.01201485]
[1673650721231,1.20949,19882.0,19881.0,0.01201485]
[1673650721721,1.70949,19882.0,19881.0,0.01201485]
[1673650721964,1.40949,19882.0,19881.0,0.01201485]
[1673650722462,1.20949,19882.0,19881.0,0.68190526]
[1673650722713,1.20949,19882.0,19881.0,0.01201485]
[1673650722960,1.50949,19882.0,19881.0,0.01201485]
[1673650723448,1.70949,19882.0,19881.0,0.01201485]
[1673650723690,1.40949,19882.0,19881.0,0.01201485]
[1673650723946,1.70949,19882.0,19881.0,0.01201485]
[1673650724195,1.40949,19882.0,19881.0,0.01201485]
[1673650724448,1.54349,19882.0,19881.0,0.01201485]
[1673650724686,1.40949,19882.0,19881.0,0.01201485]
[1673650724933,1.83849,19882.0,19881.0,0.01201485]
[1673650725169,2.33964265,19882.0,19881.0,0.01201485]
[1673650725405,2.34814265,19882.0,19881.0,0.01201485]
[1673650725656,0.2,19881.0,19876.0,0.54601412]
[1673650725902,1.50252591,19880.0,19876.0,0.54601412]
[1673650726170,0.57105391,19879.0,19876.0,0.54601412]
[1673650726420,0.503068,19878.0,19876.0,0.54601412]
[1673650726914,0.503068,19878.0,19875.0,0.9643]
[1673650727148,0.503068,19878.0,19875.0,0.61130406]
[1673650727149,0.67556591,19878.0,19875.0,0.61130406]
[1673650727410,0.523068,19878.0,19876.0,0.65828354]
[1673650727660,0.503068,19878.0,19876.0,0.65828354]
[1673650727908,0.524068,19878.0,19876.0,0.65828354]
[1673650728142,1.027136,19878.0,19874.0,0.00996148]
[1673650728391,1.19963391,19878.0,19875.0,0.49931037]
[1673650728619,1.027136,19878.0,19875.0,0.49931037]
[1673650729120,1.006136,19878.0,19875.0,0.49931037]
[1673650729362,1.34955421,19878.0,19874.0,0.00996148]
[1673650729604,0.523967,19877.0,19875.0,0.59083299]
[1673650729859,0.503119,19876.0,19875.0,0.59083299]
[1673650730844,0.503119,19876.0,19874.0,0.00996148]
[1673650731076,1.134238,19876.0,19874.0,0.53109068]
[1673650732041,1.006238,19876.0,19874.0,0.53109068]
[1673650732276,1.139238,19876.0,19874.0,0.53109068]
[1673650732558,1.006238,19876.0,19874.0,0.53109068]
[1673650732797,1.137238,19876.0,19874.0,0.53109068]
[1673650733511,1.137238,19876.0,19874.0,0.00996148]
[1673650737164,0.2,19875.0,19874.0,0.00996148]
[1673650737399,0.703144,19875.0,19874.0,0.00996148]
[1673650737681,1.206288,19875.0,19874.0,0.00996148]
[1673650738392,1.134288,19875.0,19874.0,0.00996148]
[1673650738884,1.134288,19875.0,19874.0,0.615641]
[1673650739623,0.631144,19875.0,19874.0,0.615641]
[1673650740354,0.128,19875.0,19874.0,0.00996148]
[1673650740590,0.128,19875.0,19874.0,0.09636148]
[1673650740824,0.128,19875.0,19874.0,0.03719148]
[1673650741079,0.128,19875.0,19874.0,0.00996148]
[1673650742271,0.128,19875.0,19874.0,0.51727212]
[1673650743075,1.334288,19875.0,19874.0,0.00996148]
[1673650744044,1.658255,19875.0,19874.0,0.00996148]
[1673650745465,1.8743947,19875.0,19874.0,0.00996148]
[1673650745968,0.00989852,19874.0,19869.0,0.01132321]
[1673650746214,2.88502656,19873.0,19869.0,0.01132321]
[1673650746470,1.19761756,19872.0,19869.0,0.01132321]
[1673650746736,3.18518756,19871.0,19869.0,0.01132321]
[1673650746947,0.523967,19870.0,19869.0,0.01132321]
[1673650747199,1.830509,19870.0,19869.0,0.01132321]
[1673650747442,2.34016165,19870.0,19869.0,0.01132321]
[1673650747956,2.34016165,19870.0,19866.0,0.0079137]
[1673650748208,1.43372582,19869.0,19866.0,0.0079137]
[1673650748466,2.33508265,19868.0,19866.0,0.0079137]
[1673650748706,0.198557,19867.0,19866.0,0.0079137]
[1673650748949,1.205251,19867.0,19866.0,0.0079137]
[1673650749448,1.405251,19867.0,19866.0,0.0079137]
[1673650750692,1.533251,19867.0,19866.0,0.0079137]
[1673650750940,1.333251,19867.0,19866.0,0.0079137]
[1673650751432,1.533251,19867.0,19866.0,0.0079137]
[1673650751910,1.7369082,19867.0,19866.0,0.0079137]
[1673650752148,2.0369082,19867.0,19866.0,0.0079137]
[1673650753884,1.533251,19867.0,19866.0,0.0079137]
[1673650754122,1.833251,19867.0,19866.0,0.0079137]
[1673650754384,2.33440365,19867.0,19866.0,0.0079137]
[1673650754621,1.90640365,19867.0,19866.0,0.0079137]
[1673650754865,1.540251,19867.0,19866.0,0.20819911]
[1673650755116,1.540251,19867.0,19866.0,0.84593677]
[1673650755117,0.198557,19867.0,19866.0,0.84593677]
[1673650755359,0.134,19867.0,19866.0,0.84593677]
[1673650755623,0.134,19867.0,19866.0,0.68485836]
[1673650755852,0.134,19867.0,19866.0,0.88485836]
[1673650756092,0.134,19867.0,19866.0,0.86403845]
[1673650756341,0.2,19870.0,19866.0,0.66403845]
[1673650756586,0.07717,19867.0,19866.0,0.0079137]
[1673650756835,0.383146,19867.0,19866.0,0.0079137]
[1673650757078,0.9615425,19867.0,19866.0,0.0079137]
[1673650757821,0.886493,19867.0,19866.0,0.0079137]
[1673650758064,0.02,19867.0,19866.0,0.5561776]
[1673650758582,0.02,19867.0,19866.0,1.0595496]
[1673650758826,0.02,19867.0,19866.0,1.0987566]
[1673650759070,0.503277,19870.0,19866.0,0.5953846]
[1673650759322,0.128,19867.0,19866.0,0.0079137]
[1673650759561,0.503303,19869.0,19866.0,0.0079137]
[1673650759806,0.02,19867.0,19866.0,0.64018732]
[1673650760292,0.07917,19867.0,19866.0,0.0079137]
[1673650761267,0.582517,19867.0,19866.0,0.0079137]
[1673650761514,1.40984,19867.0,19866.0,0.0079137]
[1673650761772,2.09365651,19867.0,19866.0,0.0079137]
[1673650762015,2.68250125,19867.0,19862.0,0.302829]
[1673650762263,1.86229428,19866.0,19862.0,0.302829]
[1673650762509,2.50783556,19865.0,19862.0,0.302829]
[1673650762764,0.2,19863.0,19862.0,0.302829]
[1673650763018,1.530872,19863.0,19862.0,0.302829]
[1673650764461,1.330872,19863.0,19862.0,0.302829]
[1673650764701,1.330872,19863.0,19862.0,0.97143446]
[1673650764940,0.014,19863.0,19862.0,0.58089108]
[1673650765180,0.014,19863.0,19862.0,0.38060567]
[1673650765439,0.014,19863.0,19862.0,0.342056]
[1673650765746,0.014,19863.0,19862.0,0.845529]
[1673650765983,0.014,19863.0,19862.0,1.31751659]
[1673650766235,0.014,19863.0,19862.0,1.45009468]
[1673650766479,0.014,19863.0,19862.0,0.94662168]
[1673650766733,0.014,19863.0,19862.0,0.90739468]
[1673650767481,0.014,19863.0,19862.0,0.90717239]
[1673650767729,0.576618,19863.0,19862.0,0.90717239]
[1673650767975,1.080066,19863.0,19862.0,0.30260671]
[1673650768758,1.904042,19863.0,19862.0,0.30260671]
[1673650768998,2.144791,19863.0,19862.0,0.30260671]
[1673650769491,2.64594365,19863.0,19862.0,0.30260671]
[1673650769986,2.63194365,19863.0,19862.0,0.30260671]
[1673650770215,2.76594365,19863.0,19862.0,0.30260671]
[1673650770455,2.52519465,19863.0,19862.0,0.30260671]
[1673650770706,2.22519465,19863.0,19862.0,0.30260671]
[1673650770954,1.464872,19863.0,19862.0,0.50289212]
[1673650771197,0.637448,19863.0,19862.0,0.30260671]
[1673650773187,0.637448,19863.0,19862.0,0.95976905]
[1673650773975,0.637448,19863.0,19862.0,0.30260671]
[1673650773976,1.140896,19863.0,19862.0,0.30260671]
[1673650774223,1.464872,19863.0,19862.0,0.30260671]
[1673650774717,1.8113592,19863.0,19862.0,0.30260671]
[1673650774963,2.31251185,19863.0,19862.0,0.30260671]
[1673650775214,2.61251185,19863.0,19862.0,0.30260671]
[1673650775468,3.11595985,19863.0,19862.0,0.30260671]
[1673650775716,2.61251185,19863.0,19862.0,0.30260671]
[1673650776451,2.47851185,19863.0,19862.0,0.30260671]
[1673650776711,2.48701185,19863.0,19862.0,0.30260671]
[1673650776963,2.98905157,19863.0,19862.0,0.30260671]
[1673650777459,3.12405157,19863.0,19862.0,0.30260671]
[1673650777694,2.98905157,19863.0,19862.0,0.30260671]
[1673650777964,3.12405157,19863.0,19862.0,0.30260671]
[1673650778209,3.17633164,19863.0,19862.0,0.30260671]
[1673650778449,2.52780472,19863.0,19862.0,0.30260671]
[1673650778936,2.51930472,19863.0,19862.0,0.30260671]
[1673650781176,2.52780472,19863.0,19862.0,0.30260671]
[1673650781426,1.465872,19863.0,19862.0,0.50289212]
[1673650781677,1.465872,19863.0,19862.0,1.10568928]
[1673650781932,1.465872,19863.0,19862.0,0.90540387]
[1673650781933,1.006896,19863.0,19862.0,0.90540387]
[1673650782195,0.638448,19863.0,19862.0,0.90540387]
[1673650782411,0.503448,19863.0,19862.0,0.90540387]
[1673650782648,0.638448,19863.0,19862.0,0.90540387]
[1673650782888,0.503448,19863.0,19862.0,0.90540387]
[1673650783658,0.632448,19863.0,19862.0,0.90540387]
[1673650783891,0.956424,19863.0,19862.0,0.90540387]
[1673650784382,1.135896,19863.0,19862.0,0.90540387]
[1673650784670,1.459872,19863.0,19862.0,0.90540387]
[1673650784913,1.459872,19863.0,19862.0,0.30260671]
[1673650785640,1.6562039,19863.0,19862.0,0.30260671]
[1673650785889,1.9562039,19863.0,19862.0,0.30260671]
[1673650786123,1.759872,19863.0,19862.0,0.30260671]
[1673650786617,1.959872,19863.0,19862.0,0.30260671]
[1673650787124,1.330872,19863.0,19862.0,0.30260671]
[1673650787356,1.464872,19863.0,19862.0,0.30260671]
[1673650787596,1.330872,19863.0,19862.0,0.30260671]
[1673650787844,1.465872,19863.0,19862.0,0.30260671]
[1673650788599,1.330872,19863.0,19862.0,0.30330671]
[1673650788862,1.464872,19863.0,19862.0,0.30330671]
[1673650790338,1.464872,19863.0,19862.0,0.30322738]
[1673650791811,1.664872,19863.0,19862.0,0.30322738]
[1673650792568,1.964872,19863.0,19862.0,0.30322738]
[1673650792857,2.73285655,19863.0,19862.0,0.30322738]
[1673650793105,0.30322,19862.0,19860.0,0.01132321]
[1673650793349,1.35378883,19861.0,19860.0,0.01132321]
[1673650793593,2.86428583,19861.0,19860.0,0.01132321]
[1673650793834,3.1165659,19861.0,19860.0,0.01132321]
[1673650794567,3.19828583,19861.0,19860.0,0.01132321]
[1673650795054,3.47921864,19861.0,19860.0,0.01132321]
[1673650796062,3.19828583,19861.0,19860.0,0.01132321]
[1673650796585,3.06428583,19861.0,19860.0,0.01132321]
[1673650796831,3.19928583,19861.0,19860.0,0.01132321]
[1673650799073,3.34900511,19861.0,19860.0,0.01132321]
[1673650799563,3.5723671,19861.0,19860.0,0.01132321]
[1673650799802,3.81754522,19861.0,19860.0,0.01132321]
[1673650800547,4.32009872,19861.0,19860.0,0.01132321]
[1673650800785,3.19928583,19861.0,19860.0,0.01132321]
[1673650801283,3.19928583,19861.0,19860.0,0.00614203]
[1673650801284,2.69928583,19861.0,19860.0,0.00614203]
[1673650801525,2.69928583,19861.0,19860.0,0.00566003]
[1673650802528,2.19813318,19861.0,19860.0,0.00461903]
[1673650803039,1.69463418,19861.0,19860.0,0.47768281]
[1673650803283,1.19113518,19861.0,19860.0,0.47768281]
[1673650803619,0.50103218,19861.0,19860.0,0.52545109]
[1673650803785,0.50103218,19861.0,19860.0,0.7257365]
[1673650804023,0.50103218,19861.0,19860.0,0.56468809]
[1673650804273,0.50103218,19861.0,19860.0,0.09162431]
[1673650804775,0.50103218,19861.0,19860.0,0.29162431]
[1673650805018,0.36603218,19861.0,19860.0,1.29867231]
[1673650805280,0.36603218,19861.0,19860.0,1.44847143]
[1673650805531,0.50103218,19861.0,19860.0,1.83550942]
[1673650805778,0.50103218,19861.0,19860.0,1.98602883]
[1673650806025,0.50103218,19861.0,19860.0,1.98602882]
[1673650806275,0.50103218,19861.0,19860.0,2.13510766]
[1673650806526,0.38709218,19861.0,19860.0,2.13510766]
[1673650806771,0.36609218,19861.0,19860.0,2.28490677]
[1673650807059,0.38409218,19861.0,19860.0,2.28490677]
[1673650807326,0.00845592,19867.0,19861.0,0.55432889]
[1673650807575,0.00845592,19867.0,19862.0,2.0660773]
[1673650807824,0.00845592,19867.0,19864.0,0.15049997]
[1673650808094,0.00845592,19867.0,19865.0,0.0002974]
[1673650808338,0.00845592,19867.0,19866.0,0.58393045]
[1673650808636,0.00845592,19867.0,19866.0,0.86276542]
[1673650808850,0.00845592,19867.0,19866.0,0.11775856]
[1673650809093,5.592e-05,19867.0,19866.0,1.47528794]
[1673650809336,0.13305592,19867.0,19866.0,1.84252443]
[1673650809587,5.592e-05,19867.0,19866.0,1.27500253]
[1673650809837,0.13505592,19867.0,19866.0,1.47500253]
[1673650810089,5.592e-05,19867.0,19866.0,1.70075249]
[1673650810337,0.01505592,19867.0,19866.0,1.32450256]
[1673650810585,5.592e-05,19867.0,19866.0,1.32450256]
[1673650811087,0.01605592,19867.0,19866.0,1.32450256]
[1673650811588,0.01605592,19867.0,19866.0,1.52478797]
[1673650811844,0.01605592,19867.0,19866.0,2.64240722]
[1673650812095,0.01605592,19867.0,19866.0,1.96515733]
[1673650812376,0.01605592,19867.0,19866.0,2.49120261]
[1673650813142,0.00293407,19869.0,19867.0,0.2]
[1673650813410,0.00293407,19869.0,19868.0,1.73946095]
[1673650813694,0.00293407,19869.0,19868.0,1.97865895]
[1673650813939,0.00293407,19869.0,19868.0,2.12863818]
[1673650814185,3.407e-05,19869.0,19868.0,2.12863818]
[1673650814439,0.00868703,19873.0,19869.0,0.2]
[1673650814688,0.00868703,19873.0,19870.0,1.73008341]
[1673650814930,0.00868703,19873.0,19871.0,0.23935695]
[1673650815176,0.00868703,19873.0,19872.0,1.50966]
[1673650815429,0.00868703,19873.0,19872.0,1.045618]
[1673650815669,0.00868703,19873.0,19872.0,0.039178]
[1673650815670,0.20868703,19873.0,19872.0,0.039178]
[1673650815919,0.27448299,19872.0,19870.0,0.503266]
[1673650816177,0.00868703,19873.0,19870.0,1.14971817]
[1673650816420,0.00868703,19873.0,19871.0,0.70587108]
[1673650816670,0.00868703,19873.0,19871.0,0.66669208]
[1673650816922,0.00868703,19873.0,19871.0,1.16993008]
[1673650817175,0.00868703,19873.0,19872.0,0.039178]
[1673650817421,0.00868703,19873.0,19872.0,1.045618]
[1673650817681,0.00868703,19873.0,19872.0,1.240618]
[1673650819213,0.00868703,19873.0,19872.0,1.284618]
[1673650820220,0.00868703,19873.0,19872.0,1.584618]
[1673650820469,0.00868703,19873.0,19872.0,1.540618]
[1673650820974,0.00059951,19873.0,19872.0,1.540618]
[1673650821463,0.00059951,19873.0,19872.0,1.682618]
[1673650821708,0.00059951,19873.0,19872.0,1.540618]
[1673650821952,0.00059951,19873.0,19872.0,1.681618]
[1673650822217,0.00059951,19873.0,19872.0,1.381618]
[1673650822461,0.17309742,19873.0,19872.0,1.83166083]
[1673650822749,0.00059951,19873.0,19872.0,1.83166083]
[1673650823237,0.00059951,19873.0,19872.0,1.69066083]
[1673650823486,0.00059951,19873.0,19872.0,1.83266083]
[1673650824999,0.23898742,19873.0,19872.0,1.32944083]
[1673650825260,1.54537742,19873.0,19872.0,0.142]
[1673650825506,2.22388616,19873.0,19872.0,0.142]
[1673650825752,2.10366832,19873.0,19872.0,0.142]
[1673650826029,2.05138825,19873.0,19872.0,0.142]
[1673650826305,2.60482097,19873.0,19865.0,3.56271639]
[1673650826524,2.60482097,19873.0,19866.0,0.53636493]
[1673650826525,1.36780611,19872.0,19866.0,0.53636493]
[1673650826831,1.50298191,19871.0,19866.0,0.53636493]
[1673650827083,0.36410791,19870.0,19866.0,0.53636493]
[1673650827326,0.67577191,19870.0,19865.0,2.61471639]
[1673650827600,0.37249791,19869.0,19865.0,0.50955325]
[1673650828349,0.37249791,19869.0,19866.0,0.5211302]
[1673650828603,0.37249791,19869.0,19865.0,0.02221639]
[1673650828604,0.87579491,19869.0,19865.0,0.02221639]
[1673650828908,0.27246588,19868.0,19865.0,0.01221639]
[1673650829126,0.827318,19867.0,19865.0,0.50133645]
[1673650829384,0.19161,19866.0,19865.0,0.49933645]
[1673650829637,0.2,19866.0,19865.0,0.49933645]
[1673650829890,0.2,19866.0,19865.0,0.01221639]
[1673650830142,0.523971,19866.0,19865.0,0.02321639]
[1673650830392,0.523971,19866.0,19865.0,0.57995534]
[1673650830393,0.323971,19866.0,19865.0,0.57995534]
[1673650830632,0.323971,19866.0,19865.0,0.01221639]
[1673650831378,0.323971,19866.0,19865.0,0.02321639]
[1673650831379,0.523971,19866.0,19865.0,0.02321639]
[1673650831871,1.39984038,19866.0,19865.0,0.02321639]
[1673650832114,2.04651392,19866.0,19865.0,0.01221639]
[1673650832367,1.87475855,19866.0,19865.0,0.02321639]
[1673650832867,2.17475855,19866.0,19865.0,0.02321639]
[1673650833116,2.17475855,19866.0,19865.0,0.01221639]
[1673650833372,2.17475855,19866.0,19865.0,0.02321639]
[1673650834385,1.830715,19866.0,19865.0,0.02321639]